bitfinex/quotes_ETHUSD_20250324
["timestamp","ask_amount","ask_price","bid_price","bid_amount"]
[1742817469580,8.59396,2095.1,2094.7,9.54774]
[1742817469879,8.59396,2095.1,2094.7,4.7738]
[1742817470083,13.36716,2095.1,2094.7,4.7738]
[1742817470294,8.59396,2095.1,2094.7,4.7738]
[1742817470583,13.36717,2095.1,2094.7,4.7738]
[1742817471181,0.2495,2094.7,2094.6,4.77405]
[1742817473985,0.35010566,2094.9,2094.7,4.77393]
[1742817474157,4.77336,2095.0,2094.7,4.77393]
[1742817474696,4.77336,2095.0,2094.6,4.77405]
[1742817474860,4.77336,2095.0,2094.6,9.54808]
[1742817475285,4.77336,2095.0,2094.6,9.54811]
[1742817475456,4.77336,2095.0,2094.6,4.77403]
[1742817476462,9.54679,2095.0,2094.6,4.77403]
[1742817476667,4.77336,2095.0,2094.6,4.77403]
[1742817476868,4.77336,2095.0,2094.6,9.54806]
[1742817478057,4.7735,2094.9,2094.6,4.77403]
[1742817478387,4.77336,2095.0,2094.6,4.77403]
[1742817478589,4.77336,2095.0,2094.6,9.54807]
[1742817479190,4.77336,2095.0,2094.6,4.77403]
[1742817479391,4.77336,2095.0,2094.6,9.54807]
[1742817480691,9.5468,2095.0,2094.6,4.77403]
[1742817480893,4.7735,2094.9,2094.6,4.77403]
[1742817481193,5.1247655,2094.9,2094.6,4.77403]
[1742817482261,5.1247655,2094.9,2094.5,5.73793843]
[1742817482465,5.1247755,2094.9,2094.5,5.73793843]
[1742817482865,5.1247755,2094.9,2094.5,10.51219843]
[1742817483322,5.1247755,2094.9,2094.3,4.575]
[1742817483323,5.58064,2094.7,2094.3,4.7747]
[1742817483569,5.58064,2094.7,2094.4,0.94504978]
[1742817484805,10.35479,2094.7,2094.4,0.94504978]
[1742817485014,5.58064,2094.7,2094.4,0.94504978]
[1742817486393,4.77433,2094.6,2094.4,0.94504978]
[1742817486611,4.7744,2094.5,2094.2,4.77506]
[1742817486815,4.77433,2094.6,2094.2,4.77493]
[1742817487123,3.0,2094.8,2094.5,4.77433]
[1742817487416,0.3511955,2094.9,2094.5,4.77423]
[1742817487570,8.1248255,2094.9,2094.5,10.579499]
[1742817487871,8.13896063,2094.9,2094.5,5.805229]
[1742817488899,8.13896063,2094.9,2094.6,4.77417]
[1742817489400,3.36533063,2094.9,2094.6,4.77417]
[1742817489573,8.13887063,2094.9,2094.6,4.77417]
[1742817489779,8.13887063,2094.9,2094.5,10.579489]
[1742817490173,3.36533063,2094.9,2094.6,9.54807]
[1742817490372,3.36533063,2094.9,2094.6,4.77402]
[1742817490572,3.36533063,2094.9,2094.7,10.32694]
[1742817490873,3.36533063,2094.9,2094.7,5.5531]
[1742817491880,3.36533063,2094.9,2094.7,10.32693]
[1742817492082,3.36533063,2094.9,2094.7,0.7793]
[1742817492281,3.36533063,2094.9,2094.7,5.55309]
[1742817492691,3.36533063,2094.9,2094.7,10.32691]
[1742817492870,3.36533063,2094.9,2094.8,4.77372]
[1742817493797,3.36533063,2094.9,2094.7,5.55309]
[1742817494102,3.36533063,2094.9,2094.7,10.32689]
[1742817494572,3.36533063,2094.9,2094.7,10.32691]
[1742817494774,3.36533063,2094.9,2094.7,5.55309]
[1742817495006,3.36533063,2094.9,2094.7,10.32689]
[1742817495305,3.36533063,2094.9,2094.8,4.77372]
[1742817495604,3.36533063,2094.9,2094.7,10.32692]
[1742817495808,3.36533063,2094.9,2094.7,5.55309]
[1742817496199,3.36533063,2094.9,2094.8,4.77372]
[1742817496508,3.36533063,2094.9,2094.7,6.49078124]
[1742817498374,3.36533063,2094.9,2094.7,11.26464124]
[1742817498575,3.36533063,2094.9,2094.7,11.26463124]
[1742817498870,3.36533063,2094.9,2094.8,4.77372]
[1742817499095,3.36533063,2094.9,2094.7,6.49087124]
[1742817499307,3.36533063,2094.9,2094.7,6.49079124]
[1742817500827,3.36533063,2094.9,2094.7,4.7738]
[1742817501798,0.36533063,2094.9,2094.7,4.7738]
[1742817502006,3.0,2095.0,2094.7,4.7738]
[1742817505307,0.7624,2094.9,2094.7,4.7738]
[1742817505605,0.36265974,2094.9,2094.7,4.7738]
[1742817505821,3.0,2095.0,2094.7,4.7738]
[1742817506006,4.40853089,2095.0,2094.7,4.7738]
[1742817506507,9.18181089,2095.0,2094.7,4.7738]
[1742817507902,4.40853089,2095.0,2094.7,4.7738]
[1742817508277,9.18188089,2095.0,2094.6,10.32543]
[1742817508679,9.18188089,2095.0,2094.7,4.77395]
[1742817510414,4.40853089,2095.0,2094.7,4.77395]
[1742817510599,3.0,2095.0,2094.7,4.77395]
[1742817511806,3.0,2095.0,2094.7,9.54783]
[1742817512014,3.0,2095.0,2094.7,4.77388]
[1742817512713,7.77328,2095.0,2094.7,4.77388]
[1742817512917,9.18181989,2095.0,2094.7,4.77388]
[1742817513713,4.40853989,2095.0,2094.7,4.77388]
[1742817513900,9.18184989,2095.0,2094.6,4.77416]
[1742817514088,9.18184989,2095.0,2094.6,9.54826]
[1742817515125,9.18184989,2095.0,2094.7,4.77395]
[1742817515421,9.18184989,2095.0,2094.6,4.7741]
[1742817515625,7.77331,2095.0,2094.6,9.54818]
[1742817516123,3.0,2095.0,2094.7,4.77394]
[1742817516320,0.7624,2095.1,2094.8,4.77364]
[1742817516619,3.0,2095.2,2094.9,4.77333]
[1742817517237,0.7584,2095.3,2095.0,4.77324]
[1742817517532,5.95260066,2095.5,2095.2,4.7728]
[1742817517736,5.60225,2095.5,2095.1,9.54579]
[1742817517942,3.0,2095.4,2095.1,9.54579]
[1742817518351,3.0,2095.4,2095.1,9.5458]
[1742817518834,3.0,2095.4,2095.1,4.77289]
[1742817519341,3.0,2095.4,2095.1,9.54581]
[1742817519544,3.0,2095.4,2095.2,4.77274]
[1742817519822,5.56154,2095.8,2095.4,4.77218]
[1742817520041,3.79,2095.8,2095.4,4.77218]
[1742817520226,8.56152,2095.8,2095.4,4.77218]
[1742817520787,1.14386795,2095.8,2095.4,1.036566]
[1742817521020,0.35386795,2095.8,2095.7,4.77167]
[1742817521238,0.8147,2096.0,2095.6,9.5436]
[1742817521239,3.0,2095.9,2095.6,9.5436]
[1742817521420,0.8147,2096.0,2095.6,4.77176]
[1742817521743,4.77135,2095.9,2095.4,4.77223]
[1742817521921,4.77232,2095.5,2095.2,6.47754419]
[1742817522238,4.77232,2095.5,2095.0,4.77307]
[1742817522239,0.796,2095.4,2095.1,4.77297]
[1742817522598,0.796,2095.4,2095.1,9.5459]
[1742817523025,0.796,2095.4,2095.2,4.77279]
[1742817523628,0.796,2095.4,2095.1,4.77293]
[1742817524141,0.796,2095.4,2095.1,9.54581]
[1742817524295,0.796,2095.4,2095.1,13.85438757]
[1742817524496,0.796,2095.4,2095.2,4.77271]
[1742817524727,3.0,2095.5,2095.2,4.77271]
[1742817525224,3.0,2095.5,2095.2,4.77273]
[1742817525926,3.0,2095.5,2095.2,9.54542]
[1742817526126,3.0,2095.5,2095.2,10.31912]
[1742817526325,3.0,2095.5,2095.3,4.77257]
[1742817526525,3.0,2095.5,2095.2,5.54639]
[1742817527191,3.7852,2095.6,2095.3,4.77244]
[1742817527396,8.90852242,2095.8,2095.4,4.77219]
[1742817527627,8.55677,2095.8,2095.4,4.77219]
[1742817528315,13.3284,2095.8,2095.4,4.77219]
[1742817528796,3.0,2095.6,2095.4,4.77227]
[1742817529196,3.0,2095.6,2095.3,4.77257]
[1742817535756,3.0,2095.6,2095.2,6.4900854]
[1742817536046,3.0,2095.6,2095.2,11.2627654]
[1742817536329,3.0,2095.6,2095.2,6.4900354]
[1742817536630,3.0,2095.6,2095.3,4.77257]
[1742817537235,3.0,2095.6,2095.2,6.4900354]
[1742817537403,7.77192,2095.6,2095.2,6.4900254]
[1742817537715,7.77196,2095.6,2095.1,4.77301]
[1742817537921,0.7638,2095.5,2095.1,5.72558212]
[1742817538126,11.62602,2095.5,2095.1,5.72558212]
[1742817541742,11.62595,2095.5,2095.1,5.72558212]
[1742817542336,3.0,2095.4,2095.1,5.72558212]
[1742817543142,3.0,2095.4,2095.1,4.77301]
[1742817544446,3.0,2095.4,2095.1,9.54592]
[1742817544840,3.0,2095.4,2095.1,4.77291]
[1742817548645,3.0,2095.4,2095.1,9.54582]
[1742817548849,3.0,2095.4,2095.1,4.77291]
[1742817550148,7.7724,2095.4,2095.0,11.33423089]
[1742817550647,3.0,2095.4,2095.1,4.77304]
[1742817551224,3.0,2095.4,2095.1,5.13110028]
[1742817552747,3.0,2095.4,2095.1,4.77304]
[1742817553956,7.77236,2095.4,2095.0,6.56099089]
[1742817554152,3.0,2095.4,2095.0,6.56099089]
[1742817554360,0.8151,2095.3,2094.7,4.77381]
[1742817554554,4.939831,2095.4,2094.6,5.56094]
[1742817554555,5.58846,2095.0,2094.6,5.56094]
[1742817554856,5.58846,2095.0,2094.6,4.77414]
[1742817555023,5.58846,2095.0,2094.8,0.3582336]
[1742817555835,14.13230519,2095.0,2094.8,0.3582336]
[1742817556535,14.13230519,2095.0,2094.6,10.50785491]
[1742817556848,12.03204519,2095.0,2094.6,5.73382491]
[1742817557957,12.03204519,2095.0,2094.6,6.09153725]
[1742817558330,16.80547519,2095.0,2094.6,6.09153725]
[1742817558660,12.03204519,2095.0,2094.6,6.09153725]
[1742817558959,12.03204519,2095.0,2094.6,5.73382491]
[1742817560156,16.80552519,2095.0,2094.6,5.73382491]
[1742817560525,12.03204519,2095.0,2094.6,5.73382491]
[1742817562666,16.80550519,2095.0,2094.6,5.73382491]
[1742817563961,4.77352,2094.9,2094.6,5.48432491]
[1742817566371,6.44358519,2095.0,2094.7,0.8036]
[1742817566535,6.44358519,2095.0,2094.7,5.57754]
[1742817566740,11.21687519,2095.0,2094.7,5.57754]
[1742817566940,6.44358519,2095.0,2094.8,4.77367]
[1742817567337,6.44358519,2095.0,2094.7,5.57744]
[1742817567541,6.44358519,2095.0,2094.7,10.35127]
[1742817567777,6.44358519,2095.0,2094.7,5.57743]
[1742817569973,6.31358519,2095.0,2094.7,5.57743]
[1742817570970,6.31358519,2095.0,2094.7,6.70855849]
[1742817571267,8.96,2095.0,2094.8,4.77353]
[1742817571845,8.96,2095.0,2094.7,11.48247849]
[1742817572049,8.96,2095.0,2094.8,4.77362]
[1742817572574,8.96,2095.0,2094.8,9.54719]
[1742817572768,8.96,2095.0,2094.8,4.77357]
[1742817573572,3.0,2095.0,2094.8,4.77357]
[1742817573744,3.0,2095.0,2094.8,9.54717]
[1742817574171,3.0,2095.0,2094.8,4.77357]
[1742817576554,3.36264642,2095.1,2094.8,9.54713]
[1742817576764,3.0,2095.1,2094.8,9.54719]
[1742817576965,3.0,2095.1,2094.8,4.77356]
[1742817577154,3.0,2095.1,2094.8,9.54712]
[1742817577656,3.0,2095.1,2094.9,4.77345]
[1742817577856,3.0,2095.1,2094.9,4.77338]
[1742817578064,10.511,2095.2,2094.9,1.07081918]
[1742817578065,5.96,2095.2,2094.9,1.07081918]
[1742817578289,5.96,2095.2,2095.1,4.77304]
[1742817579257,7.551,2095.5,2095.2,4.77281]
[1742817579258,3.0,2095.3,2095.2,4.77281]
[1742817579964,5.96,2095.4,2095.2,4.77281]
[1742817580470,5.96,2095.4,2095.2,9.5455]
[1742817580681,5.96,2095.4,2095.2,4.77269]
[1742817582479,5.96,2095.4,2095.2,4.77268]
[1742817582680,5.96,2095.4,2095.2,9.54535]
[1742817582880,5.96,2095.4,2095.2,4.77267]
[1742817583082,5.96,2095.4,2095.2,9.54532]
[1742817583690,8.96,2095.4,2095.3,4.77258]
[1742817584193,5.96,2095.4,2095.3,4.77258]
[1742817584391,5.96,2095.4,2095.3,5.82504755]
[1742817584588,5.96,2095.4,2095.3,6.59314755]
[1742817584897,4.55,2095.7,2095.3,6.59314755]
[1742817584898,5.96,2095.7,2095.5,4.77207]
[1742817585194,5.96,2095.7,2095.6,4.7719]
[1742817585898,10.51,2095.9,2095.6,9.5438]
[1742817586109,10.51,2095.9,2095.6,4.77181]
[1742817586270,10.51,2095.9,2095.6,9.54358]
[1742817586598,10.51,2095.9,2095.6,4.77177]
[1742817586768,10.51,2095.9,2095.6,9.54353]
[1742817587215,10.51,2095.9,2095.6,4.77176]
[1742817587401,10.51,2095.9,2095.6,9.54349]
[1742817587587,10.51,2095.9,2095.6,4.77174]
[1742817587980,10.87052969,2095.9,2095.6,4.77174]
[1742817588996,10.87052969,2095.9,2095.6,9.54352]
[1742817589196,10.87052969,2095.9,2095.6,4.77174]
[1742817589439,10.87052969,2095.9,2095.6,5.7257916]
[1742817589833,10.87052969,2095.9,2095.6,10.4975316]
[1742817590034,10.87052969,2095.9,2095.6,5.7257916]
[1742817590325,15.64177969,2095.9,2095.6,0.9540516]
[1742817590496,10.87052969,2095.9,2095.6,5.7258716]
[1742817592021,15.64192969,2095.9,2095.6,0.9540516]
[1742817592224,18.06253966,2095.9,2095.6,0.9540516]
[1742817592524,10.87052969,2095.9,2095.6,10.4975516]
[1742817592840,10.87052969,2095.9,2095.7,4.77165]
[1742817593004,10.87052969,2095.9,2095.7,9.54319]
[1742817593204,10.87052969,2095.9,2095.7,4.77154]
[1742817593826,10.51,2095.9,2095.7,4.77154]
[1742817594420,10.51,2095.9,2095.7,9.5431]
[1742817594598,10.51,2095.9,2095.7,4.77154]
[1742817594795,10.51,2095.9,2095.7,9.5431]
[1742817594995,10.51,2095.9,2095.7,4.77154]
[1742817596231,10.51,2095.9,2095.7,9.54306]
[1742817596524,3.0,2096.0,2095.7,10.66915116]
[1742817596827,3.0,2096.0,2095.7,5.89761116]
[1742817597512,4.68228258,2096.1,2095.8,4.77123]
[1742817597826,4.68228258,2096.1,2095.8,9.54253]
[1742817598396,4.68228258,2096.1,2095.8,4.77123]
[1742817598602,3.0,2096.2,2095.9,4.77109]
[1742817598803,0.7668,2096.3,2096.0,4.77087]
[1742817599006,3.7668,2096.3,2096.0,4.77087]
[1742817600034,8.90218852,2096.3,2095.9,10.34667]
[1742817600235,8.90218852,2096.3,2096.0,4.77098]
[1742817600436,3.7668,2096.3,2096.0,9.54184]
[1742817600632,3.0,2096.4,2096.3,4.7703]
[1742817600832,0.7766,2096.5,2096.3,4.7703]
[1742817601034,3.7766,2096.5,2096.3,4.7703]
[1742817601427,3.0,2096.5,2096.3,4.7703]
[1742817601628,3.0,2096.5,2096.2,4.77047]
[1742817602728,3.0,2096.5,2096.2,4.77045]
[1742817602930,3.0,2096.5,2096.3,4.77023]
[1742817603125,3.0,2096.5,2096.3,4.77018]
[1742817603329,0.51,2096.6,2096.4,4.76995]
[1742817603511,0.51,2096.6,2096.1,6.49717828]
[1742817603512,0.7644,2096.5,2096.1,0.95453828]
[1742817603709,0.7902,2096.2,2095.7,0.8107]
[1742817603907,0.7902,2096.2,2095.4,6.12]
[1742817603908,4.77153,2095.8,2095.6,0.95864814]
[1742817604254,0.7902,2095.9,2095.3,0.8115]
[1742817604416,4.77159,2095.8,2095.1,4.77283]
[1742817604617,5.3372,2095.7,2094.9,0.8115]
[1742817604928,4.14000573,2095.7,2095.0,0.9591941]
[1742817605242,4.14000573,2095.7,2095.3,4.77243]
[1742817605440,3.7902,2095.7,2095.4,4.77233]
[1742817605643,3.7902,2095.7,2095.5,4.77208]
[1742817605644,0.7902,2095.7,2095.5,4.77208]
[1742817605820,4.77091,2096.1,2095.5,0.556448]
[1742817605821,0.51,2096.1,2095.5,0.556448]
[1742817606012,0.51,2096.3,2095.7,4.77167]
[1742817606213,0.51,2096.3,2095.6,0.7796]
[1742817606214,6.09875,2096.5,2096.3,0.06938725]
[1742817606434,4.77019,2096.4,2096.3,8.77192223]
[1742817606635,5.12160857,2096.4,2096.3,12.90504556]
[1742817606845,3.35141857,2096.4,2096.3,14.32543027]
[1742817607043,1.3289,2096.5,2096.3,14.32543027]
[1742817607275,3.0,2096.4,2096.3,14.32543027]
[1742817607916,4.3289,2096.5,2096.3,14.32543027]
[1742817608118,3.51,2096.5,2096.3,14.32543027]
[1742817608533,0.7527,2096.7,2096.4,4.76999]
[1742817608724,6.04428,2096.9,2096.4,4.76999]
[1742817608929,1.62947831,2096.9,2096.6,4.76953]
[1742817609147,0.51,2097.0,2096.6,4.76953]
[1742817609321,5.27871,2097.0,2096.6,4.76953]
[1742817609648,5.6373684,2097.0,2096.6,4.76953]
[1742817609848,3.0,2096.9,2096.6,4.76952]
[1742817610225,3.0,2096.9,2096.6,9.53905]
[1742817610428,3.8686584,2097.0,2096.7,4.76929]
[1742817610638,0.8686584,2097.0,2096.7,4.76929]
[1742817610847,3.51,2097.0,2096.7,4.76929]
[1742817611057,0.51,2097.0,2096.8,4.76913]
[1742817611235,1.3198,2097.3,2096.9,4.76894]
[1742817611425,1.3198,2097.3,2097.0,4.76857]
[1742817611631,4.76777,2097.5,2097.1,4.76837]
[1742817611632,5.57749,2097.5,2097.1,4.76837]
[1742817611940,0.8098,2097.5,2097.1,9.53665]
[1742817612244,0.8098,2097.5,2097.2,4.76811]
[1742817612418,10.06612,2097.7,2097.2,4.76811]
[1742817612620,11.048444,2097.7,2097.2,4.76811]
[1742817612815,7.012444,2097.7,2097.2,4.76809]
[1742817613144,4.76747,2097.6,2097.2,4.76809]
[1742817613318,3.0,2097.5,2097.2,4.76809]
[1742817613518,4.76747,2097.6,2097.2,4.76823]
[1742817613953,3.0,2097.5,2097.2,4.76823]
[1742817614151,3.0,2097.5,2097.1,5.53388]
[1742817614450,3.0,2097.5,2097.1,10.30226]
[1742817614618,3.0,2097.6,2097.2,4.76815]
[1742817615020,3.0,2097.6,2097.1,0.7655]
[1742817615223,4.76815,2097.3,2096.8,5.55375]
[1742817615550,4.76815,2097.3,2096.8,10.32277]
[1742817615551,5.55585,2097.3,2096.8,10.32277]
[1742817615922,5.55585,2097.3,2096.9,4.76894]
[1742817616423,10.32399,2097.3,2096.9,4.76894]
[1742817616726,5.55584,2097.3,2096.8,11.29349556]
[1742817617052,3.0,2097.2,2096.8,6.52443556]
[1742817617246,3.0,2097.2,2096.8,11.29350556]
[1742817617419,7.76828,2097.2,2096.8,11.29350556]
[1742817617618,3.0,2097.2,2096.8,11.29349556]
[1742817617820,7.76827,2097.2,2096.8,11.29349556]
[1742817618142,7.76827,2097.2,2096.8,6.52443556]
[1742817618541,3.0,2097.2,2096.8,11.29350556]
[1742817618737,5.27778,2097.5,2097.0,4.76857]
[1742817618924,8.27778,2097.5,2097.1,4.76838]
[1742817619125,3.0,2097.5,2097.1,4.76838]
[1742817619656,3.0,2097.5,2097.1,9.53677]
[1742817619818,3.0,2097.5,2096.8,6.52461556]
[1742817619819,4.76822,2097.3,2096.8,6.52461556]
[1742817620021,4.76828,2097.2,2096.8,6.52461556]
[1742817620455,7.76828,2097.2,2096.8,6.52461556]
[1742817620749,8.57908,2097.2,2096.8,6.52461556]
[1742817621248,8.57908,2097.2,2096.8,11.29362556]
[1742817621417,8.57908,2097.2,2096.8,11.29356556]
[1742817621622,8.5012295,2097.2,2096.8,6.52449556]
[1742817621860,8.5012295,2097.2,2096.8,5.73969556]
[1742817622028,3.8108,2097.2,2096.8,5.73969556]
[1742817622236,3.8108,2097.2,2096.9,4.76892]
[1742817623053,8.57906,2097.2,2096.8,5.73969556]
[1742817624145,4.76865,2097.1,2096.8,0.97068556]
[1742817624346,8.57906,2097.2,2096.8,0.97068556]
[1742817625047,3.8108,2097.2,2096.8,0.97068556]
[1742817625245,3.0,2097.2,2097.0,4.76867]
[1742817626330,3.7901,2097.4,2097.1,4.76837]
[1742817627245,0.7901,2097.4,2097.1,4.76837]
[1742817627437,3.7901,2097.4,2097.1,4.76837]
[1742817627634,3.0,2097.4,2097.1,4.76837]
[1742817628041,3.0,2097.5,2097.2,4.76806]
[1742817628434,5.12127096,2097.7,2097.3,4.76788]
[1742817628960,0.35405096,2097.7,2097.3,4.76788]
[1742817629157,8.5182,2097.8,2097.3,4.76782]
[1742817629455,5.5182,2097.8,2097.4,4.76767]
[1742817630626,6.09,2097.9,2097.7,4.76712]
[1742817630862,4.544,2098.1,2097.9,4.76667]
[1742817630863,6.09,2098.1,2097.9,4.76667]
[1742817631033,11.6427,2098.1,2097.6,14.07846]
[1742817631237,16.40909,2098.1,2097.6,10.796556]
[1742817631645,11.6427,2098.1,2097.6,10.796516]
[1742817631837,4.76644,2098.0,2097.6,10.796516]
[1742817632254,4.76702,2097.8,2097.6,4.544]
[1742817632463,4.76717,2097.7,2097.3,1.5112158]
[1742817632674,4.76717,2097.7,2097.3,6.2792358]
[1742817633773,4.7675,2097.6,2097.2,9.31218]
[1742817633957,4.7675,2097.6,2097.2,9.31214]
[1742817634564,4.7676,2097.5,2097.3,0.95959668]
[1742817634962,4.7675,2097.6,2097.3,0.95959668]
[1742817635168,4.76745,2097.6,2097.3,0.95959668]
[1742817635777,5.5287,2097.4,2097.0,4.76861]
[1742817636148,4.76818,2097.3,2096.8,5.70664028]
[1742817636339,4.76835,2097.2,2096.8,5.70664028]
[1742817636544,4.76803,2097.3,2096.8,0.93754028]
[1742817636745,4.76803,2097.3,2096.9,4.76883]
[1742817638244,4.76803,2097.3,2096.9,6.30631974]
[1742817638961,5.52861,2097.4,2097.0,4.76862]
[1742817639147,5.52861,2097.4,2097.0,4.76851]
[1742817639668,5.52861,2097.4,2096.9,6.30641974]
[1742817639975,4.76859,2097.1,2096.7,4.76932]
[1742817640149,4.76848,2097.1,2096.7,4.76932]
[1742817640559,4.76848,2097.1,2096.7,5.12632893]
[1742817641178,5.58077,2096.8,2096.7,0.35700893]
[1742817642178,5.58077,2096.8,2096.5,6.49549847]
[1742817642950,10.35016,2096.8,2096.5,6.49549847]
[1742817643783,5.58077,2096.8,2096.5,6.49549847]
[1742817643942,10.35015,2096.8,2096.5,6.49549847]
[1742817644148,10.35015,2096.8,2096.5,11.26526847]
[1742817644149,0.8116,2096.8,2096.5,11.26526847]
[1742817644348,5.58078,2096.8,2096.5,11.26526847]
[1742817644569,5.58078,2096.8,2096.5,6.49549847]
[1742817645183,4.76985,2096.5,2096.3,31.12157143]
[1742817645678,7.76969,2096.6,2096.3,31.12157143]
[1742817645855,7.77008,2096.4,2096.3,31.12157143]
[1742817646545,15.17108,2096.4,2096.3,31.12157143]
[1742817647460,14.62108,2096.4,2096.3,31.12157143]
[1742817647660,9.851,2096.4,2096.3,31.12157143]
[1742817647855,6.09,2096.4,2096.3,34.71079457]
[1742817648261,6.09,2096.4,2096.3,31.12157143]
[1742817648594,10.86008,2096.4,2096.3,31.12157143]
[1742817649283,6.043275,2096.4,2096.3,31.12157143]
[1742817649846,3.0,2096.5,2096.3,35.89177143]
[1742817651279,3.0,2096.5,2096.3,31.12157143]
[1742817651576,4.77008,2096.4,2096.3,31.12157143]
[1742817651877,3.0,2096.5,2096.3,31.12157143]
[1742817653374,7.76985,2096.5,2096.3,31.12157143]
[1742817653583,3.0,2096.5,2096.3,31.12157143]
[1742817654174,7.76988,2096.5,2096.3,31.12157143]
[1742817654351,3.0,2096.5,2096.3,31.12157143]
[1742817655485,7.76986,2096.5,2096.3,31.12157143]
[1742817655982,1.3114,2096.4,2096.3,31.12157143]
[1742817656168,9.08148,2096.4,2096.3,31.12157143]
[1742817656371,8.53148,2096.4,2096.3,31.12157143]
[1742817656563,3.7614,2096.4,2096.3,31.12157143]
[1742817656883,8.53148,2096.4,2096.3,31.12157143]
[1742817657898,9.08148,2096.4,2096.3,31.12157143]
[1742817658457,8.53148,2096.4,2096.3,31.12157143]
[1742817659066,3.7614,2096.4,2096.3,31.12157143]
[1742817659271,3.0,2096.4,2096.3,31.12157143]
[1742817659472,11.592035,2096.6,2096.3,31.12157143]
[1742817659672,6.043275,2096.6,2096.3,35.89185143]
[1742817660483,6.043275,2096.6,2096.4,4.77004]
[1742817661067,6.043275,2096.6,2096.5,4.76985]
[1742817661265,4.76867,2097.1,2096.5,0.7638]
[1742817661588,10.811765,2097.1,2096.7,4.76918]
[1742817662455,4.76894,2096.9,2096.5,5.53361]
[1742817662656,4.76975,2096.6,2096.3,31.12157143]
[1742817662877,5.60198,2096.4,2096.3,31.12157143]
[1742817663189,8.60198,2096.4,2096.3,31.12157143]
[1742817663565,15.195255,2096.4,2096.3,31.12157143]
[1742817664584,15.1484764,2096.4,2096.3,31.12157143]
[1742817664753,9.875175,2096.4,2096.3,31.12157143]
[1742817664958,9.043275,2096.4,2096.3,31.12157143]
[1742817666189,13.813355,2096.4,2096.3,31.12157143]
[1742817666661,6.043275,2096.4,2096.3,31.12157143]
[1742817666867,10.813355,2096.4,2096.3,31.12157143]
[1742817667255,11.584755,2096.4,2096.3,31.12157143]
[1742817667568,16.80531808,2096.4,2096.3,31.12157143]
[1742817667769,16.75859308,2096.4,2096.3,31.12157143]
[1742817668862,16.75859308,2096.4,2096.3,17.31781446]
[1742817669059,4.7719,2095.7,2095.3,5.53818]
[1742817669460,5.54795,2095.8,2095.3,4.77248]
[1742817669682,5.54795,2095.8,2095.3,10.499493]
[1742817669683,3.0,2095.7,2095.3,10.499493]
[1742817669891,3.0,2095.7,2095.3,5.727003]
[1742817670267,7.7717,2095.7,2095.3,5.727003]
[1742817670582,7.7717,2095.7,2095.2,6.53968591]
[1742817670895,7.7717,2095.7,2095.3,4.77257]
[1742817671296,7.7717,2095.7,2095.2,6.53968591]
[1742817671459,7.7717,2095.7,2095.2,5.57388]
[1742817671659,4.77199,2095.6,2095.2,0.8011]
[1742817671993,4.77199,2095.6,2095.1,9.68489585]
[1742817671994,4.77216,2095.5,2095.1,9.68489585]
[1742817672160,4.77216,2095.5,2095.1,4.91188585]
[1742817672365,5.55666,2095.4,2095.1,0.35688585]
[1742817672793,4.77264,2095.3,2094.9,4.77346]
[1742817673295,0.7966,2095.1,2094.8,0.35688585]
[1742817673615,0.7966,2095.1,2094.7,0.94592785]
[1742817673616,5.99655,2095.1,2094.9,4.77347]
[1742817673765,5.99655,2095.1,2094.9,5.34540979]
[1742817673963,0.7966,2094.9,2094.6,0.35688585]
[1742817674163,7.77395,2094.7,2094.6,0.35688585]
[1742817674379,13.7705,2094.7,2094.6,0.35688585]
[1742817674588,15.0756,2094.7,2094.6,0.35688585]
[1742817674992,7.77432,2094.6,2094.0,9.55085]
[1742817675200,4.77441,2094.5,2094.0,4.77541]
[1742817675398,4.77441,2094.5,2094.0,9.55084]
[1742817675562,9.54894,2094.5,2094.0,4.77541]
[1742817675772,9.54894,2094.5,2093.7,0.7626]
[1742817675773,3.0,2094.3,2093.7,0.7626]
[1742817675966,0.55,2094.2,2093.4,4.77677]
[1742817676169,0.55,2094.2,2093.0,4.77769]
[1742817676170,4.77659,2093.6,2093.2,0.7626]
[1742817676499,3.0,2093.6,2093.0,0.96104764]
[1742817676697,3.0,2093.6,2093.1,4.77748]
[1742817676698,3.36336806,2093.6,2093.1,4.77748]
[1742817676903,3.0,2093.6,2093.3,4.77712]
[1742817677070,5.99655,2093.7,2093.4,4.77678]
[1742817677268,0.36401328,2094.0,2093.5,4.7765]
[1742817677472,0.7904,2094.1,2093.7,4.77604]
[1742817678311,3.0,2094.0,2093.5,9.48552]
[1742817678675,3.0,2094.0,2093.6,4.77639]
[1742817678875,3.0,2094.0,2093.8,4.77588]
[1742817679093,3.7904,2094.1,2093.7,5.724559]
[1742817679285,0.55,2094.0,2093.3,4.77692]
[1742817679489,0.55,2094.0,2093.1,4.77741]
[1742817679490,3.0,2093.6,2093.1,4.77741]
[1742817679691,4.7767,2093.5,2092.9,4.77787]
[1742817679871,9.55354,2093.5,2092.9,4.77787]
[1742817680075,4.77697,2093.4,2092.9,5.82695952]
[1742817680776,0.55,2093.5,2093.1,4.7776]
[1742817681009,8.99655,2093.6,2093.1,4.7776]
[1742817681325,13.77312,2093.6,2093.1,4.7776]
[1742817681621,8.99655,2093.6,2093.3,4.7771]
[1742817682116,8.99655,2093.6,2093.2,4.77737]
[1742817682284,8.99655,2093.6,2093.3,4.77712]
[1742817682492,8.99655,2093.6,2093.3,4.77701]
[1742817682679,5.99655,2093.6,2093.3,4.77701]
[1742817682874,5.9522827,2093.6,2093.3,6.288643]
[1742817683087,5.9522827,2093.6,2093.3,4.77701]
[1742817683831,5.9522827,2093.6,2093.5,4.77668]